Cogmind - Beta 14 @@@ ROGUE MODE // 2024.10.27 @ 12:23:20 Player: Tereza Result: Destroyed by P-60 Hacker with Shock Rifle Performance ------------- Evolutions (1) 500 Regions Visited (5) 1000 Robots Destroyed (67) 335 Value Destroyed (2516) 2516 Prototype IDs (5) 100 Alien Tech Used (0) 0 Bonus (928) 928 TOTAL SCORE: 5379 Bonus ------- High Alert Combat Kills 229 Follower Combat Kills 14 Entered Garrisons 200 Used RIF Installer 500 Friendly Fire -15 Cogmind --------- Core Integrity 0/400 Matter 259/300 Energy 250/250 System Corruption 9% Temperature Cool (92) Movement Treading (320) Ox2 Location -9/Garrison Parts ------- > --- POWER (1) -------- Ion Engine > --- PROPULSION (2) --- Light Treads Light Treads > --- UTILITY (4) ------ Huge Storage Unit Terrain Scan Processor Light Armor Plating > --- WEAPON (2) ------- Heavy Assault Rifle > --- INVENTORY (25) --- Ion Engine Light Ion Engine Light Treads Wheel Wheel Flight Unit Flight Unit Flight Unit Improved Flight Unit Improved Flight Unit Heat Sink Sensor Array Signal Interpreter Terrain Scanner Terrain Scanner Terrain Scan Processor Relay Coupler [Heavy] (12) Drone Bay (2/2) Improved Medium Laser Improved Medium Laser Shotgun Mini Grenade Launcher Mining Laser Peak State ------------ > --- POWER ------------ Light Ion Engine > --- PROPULSION ------- Light Treads Wheel > --- UTILITY ---------- Huge Storage Unit Terrain Scan Processor Heavy Armor Plating > --- WEAPON ----------- Improved Medium Laser Heavy Assault Rifle > --- INVENTORY -------- Ion Engine Light Ion Engine Light Treads Wheel Wheel Flight Unit Flight Unit Flight Unit Improved Flight Unit Improved Flight Unit Sensor Array Signal Interpreter Terrain Scanner Terrain Scanner Terrain Scan Processor Relay Coupler [Heavy] Drone Bay Improved Medium Laser Improved Medium Laser Heavy Assault Rifle Shotgun Mini Grenade Launcher Mining Laser [Rating: 21] Favorites ----------- Power Light Ion Engine Engine Light Ion Engine Propulsion Light Treads Treads Light Treads Wheel Wheel Utility Huge Storage Unit Device Terrain Scanner Storage Huge Storage Unit Processor Terrain Scan Processor Protection Light Armor Plating Weapon Heavy Assault Rifle Energy Gun Improved Medium Laser Ballistic Gun Heavy Assault Rifle Build | -11 -10 -10 -9 -9 -9 ------- Run | Yrd Mat Min Mat Sto Gar Slots Evolved 2 | . . . 2 . . Power . | . . . . . . Propulsion . | . . . . . . Utility 2 | . . . 2 . . Weapon . | . . . . . . Parts Attached 45 | 6 3 . 9 17 10 Power 7 | 1 . . 1 3 2 Engine 7 | 1 . . 1 3 2 Core . | . . . . . . Reactor . | . . . . . . Propulsion 12 | 2 1 . 4 3 2 Treads 9 | 2 . . 3 2 2 Leg . | . . . . . . Wheel 3 | . 1 . 1 1 . Hover . | . . . . . . Flight . | . . . . . . Utility 14 | 1 2 . 2 4 5 Device 4 | . 1 . . 1 2 Storage 2 | 1 1 . . . . Processor 1 | . . . . 1 . Hackware . | . . . . . . Protection 7 | . . . 2 2 3 Artifact . | . . . . . . Weapon 12 | 2 . . 2 7 1 Energy Gun 5 | 1 . . . 4 . Energy Cannon . | . . . . . . Ballistic Gun 7 | 1 . . 2 3 1 Ballistic Cannon . | . . . . . . Launcher . | . . . . . . Special Weapon . | . . . . . . Impact Weapon . | . . . . . . Slashing Weapon . | . . . . . . Piercing Weapon . | . . . . . . Special Melee Weapon . | . . . . . . Unidentified Prototypes 1 | . . . . 1 . Parts Lost 15 | . . . 4 5 6 Power 4 | . . . 1 2 1 Propulsion 5 | . . . 2 2 1 Utility 3 | . . . 1 . 2 Weapon 3 | . . . . 1 2 Highest Loss Streak 3 | . . . 3 2 3 To Critical Strikes 1 | . . . 1 . . Average Slot Usage (%) 92 | . 88 100 86 98 92 Engine 11 | . 14 14 10 10 10 Treads 13 | . 27 14 11 10 13 Wheel 8 | . 1 14 10 10 8 Device 6 | . 3 14 6 10 4 Storage 11 | . 14 14 11 11 11 Processor 7 | . . . . 10 11 Protection 10 | . . . 14 11 10 Energy Gun 10 | . 14 14 5 10 10 Ballistic Gun 12 | . 14 14 16 10 10 Peak Build Rating 21 | 6 7 7 11 18 21 Average Rating 15 | 4 6 7 10 15 19 On Entrance 8 | . 6 7 7 11 18 Naked Turns . | . . . . . . Heaviest Build 106 | 11 87 87 91 97 106 Greatest Support 40 | 40 40 10 10 20 40 Greatest Overweight (x) 10 | 1 8 8 9 9 10 Average Overweight (x) 7 | . . 8 8 8 7 Largest Inventory Capacity 25 | 8 25 25 25 25 25 Average Capacity 23 | 7 9 25 25 25 25 Most Carried 25 | 7 8 8 24 25 25 Average Carried 20 | 4 7 8 15 24 24 Final Capacity 25 | 8 25 25 25 25 25 Final Carried 25 | 6 8 8 24 25 23 Class Distribution -------------------- 58% | Scavenger-Mutant 41% | Mutant Dominant Class ---------------- Mutant | -10/Materials Mutant | -10/Mines Mutant | -9/Materials Scavenger-Mutant | -9/Storage Scavenger-Mutant | -9/Garrison Resources | -11 -10 -10 -9 -9 -9 ----------- Run | Yrd Mat Min Mat Sto Gar Matter Collected 1166 | 260 14 . 224 392 276 Remotely . | . . . . . . Salvage Created 2334 | . 93 57 374 813 997 Parts 166 | . 9 3 37 57 60 Haulers Intercepted 3 | . . . 1 2 . Recyclers Shooed 3 | . 1 . . 2 . Parts Field Recycled . | . . . . . . Retrieved Matter . | . . . . . . Parts Self-Destructed . | . . . . . . Prevented . | . . . . . . Kills | -11 -10 -10 -9 -9 -9 ------- Run | Yrd Mat Min Mat Sto Gar Combat Hostiles Destroyed 56 | . 3 1 14 14 24 Guns 56 | . 3 1 14 14 24 Classes Destroyed 10 | . 3 1 2 3 1 Worker 2 | . 1 . . 1 . Builder 2 | . 1 . . 1 . Hauler 3 | . . . 1 2 . Recycler 1 | . . . . 1 . Operator 1 | . . . . 1 . Watcher 2 | . . . . 2 . Swarmer 17 | . 3 . 10 3 1 Grunt 28 | . . 1 3 5 19 Brawler 1 | . . . . . 1 Sentry 10 | . . . 1 6 3 Best Kill Streak 5 | . 3 1 5 3 3 Combat Bots Only 5 | . 3 1 5 2 3 Max Kills in Single Turn 2 | . 1 1 2 1 1 Gunslinging 1 | . . . 1 . . Exploded . | . . . . . . Melee . | . . . . . . Uniques/NPCs Destroyed . | . . . . . . Combat | -11 -10 -10 -9 -9 -9 -------- Run | Yrd Mat Min Mat Sto Gar Hostile Shots Fired 315 | . 19 14 79 93 110 Missed 80 | . 6 7 21 25 21 Damage Taken 2892 | . 104 95 610 885 1198 Core 442 | . 7 24 81 135 195 Absorbed by Shields . | . . . . . . Redirected to Shielding 25 | . . . 25 . . Core Remaining (%) 93 | 100 . 87 . . . Volleys Fired 201 | . 29 6 43 54 69 Largest 2 | . 2 2 2 2 2 Hottest 88 | . 70 70 73 88 79 Shots Fired 392 | . 56 12 85 105 134 Gun 392 | . 56 12 85 105 134 Cannon . | . . . . . . Launcher . | . . . . . . Special . | . . . . . . Kinetic 230 | . 29 6 72 54 69 Thermal 162 | . 27 6 13 51 65 Explosive . | . . . . . . Electromagnetic . | . . . . . . Robot Hit Streak 16 | . 5 7 12 13 16 Robot Miss Streak 16 | . 16 3 4 3 4 Penetration Max . | . . . . . . Secondary Targets 6 | . 2 . 2 . 2 Max Gunslinging Chain 1 | . 1 . 1 . 1 Shots Hit Robots 231 | . 24 7 53 66 81 Core Hits 99 | . 8 4 21 32 34 Critical Kills . | . . . . . . Critical Parts Destroyed . | . . . . . . Critical Strikes 12 | . 2 1 . 5 4 Burn 12 | . 2 1 . 5 4 Melee Attacks . | . . . . . . Impact . | . . . . . . Slashing . | . . . . . . Piercing . | . . . . . . Sneak Attacks . | . . . . . . Combat Hostiles . | . . . . . . Follow-up Attacks . | . . . . . . Damage Inflicted 3470 | . 288 79 675 1035 1393 Guns 3470 | . 288 79 675 1035 1393 Cannons . | . . . . . . Explosions . | . . . . . . Melee . | . . . . . . Ramming . | . . . . . . Kinetic 1838 | . 127 18 561 497 635 Thermal 1632 | . 161 61 114 538 758 Explosive . | . . . . . . Electromagnetic . | . . . . . . Impact . | . . . . . . Slashing . | . . . . . . Piercing . | . . . . . . Highest Corruption 9 | . 4 4 1 1 9 Average Corruption 1 | . 3 4 1 1 1 Corruption Purged . | . . . . . . Corruption Blocked . | . . . . . . Effects 27 | . 3 2 2 7 13 Message Errors 8 | . 1 . . 2 5 Matter Fused 10 | . 1 1 2 1 5 Heat Flow Errors 1 | . . . . . 1 Energy Discharges 5 | . 1 1 . 3 . Data Loss (major) 2 | . . . . . 2 Weapon Failures 1 | . . . . 1 . Overload Shots . | . . . . . . Overflow Damage . | . . . . . . Projectiles . | . . . . . . Explosions . | . . . . . . Melee . | . . . . . . Knockbacks . | . . . . . . Impact . | . . . . . . Kinetic . | . . . . . . Secondary . | . . . . . . Self-Inflicted Damage . | . . . . . . Shots . | . . . . . . Rammed . | . . . . . . Targets Rammed . | . . . . . . Kicked . | . . . . . . Crushed . | . . . . . . Highest Temperature 248 | . 110 77 60 201 248 Average Temperature 51 | . 36 35 13 59 64 Received Heat Transfer 819 | . . 57 159 273 330 Siege Activations . | . . . . . . Robots Corrupted . | . . . . . . Combat Hostiles . | . . . . . . Parts Fried . | . . . . . . Impact Corruptions . | . . . . . . Robots Melted . | . . . . . . Combat Hostiles . | . . . . . . Parts Melted 2 | . 1 . . . 1 Heat Transferred 4773 | . 629 259 333 1628 1924 Parts Sabotaged . | . . . . . . Parts Stolen . | . . . . . . Parts Stripped . | . . . . . . Power Chain Reactions . | . . . . . . Alert | -11 -10 -10 -9 -9 -9 ------- Run | Yrd Mat Min Mat Sto Gar Peak Influence 1175 | . 111 30 249 383 1175 Initial 157 | . . . 11 104 157 Average 391 | . 82 10 108 225 679 Maximum Alert Level 4 | . . . 1 1 4 Low Security (%) 37 | 100 100 100 74 35 4 Level 1 30 | . . . 25 64 24 Level 2 10 | . . . . . 23 Level 3 17 | . . . . . 39 Level 4 3 | . . . . . 8 Level 5 . | . . . . . . High Security . | . . . . . . Max Security . | . . . . . . Squads Dispatched 3 | . 1 . 1 1 . Investigation 1 | . . . 1 . . Extermination . | . . . . . . Reinforcement 2 | . 1 . . 1 . Assault . | . . . . . . Garrison . | . . . . . . Intercept . | . . . . . . Searches Triggered . | . . . . . . Construction Impeded . | . . . . . . Haulers Reinforced . | . . . . . . Active Scanning Responses . | . . . . . . Cargo Convoy Interrupts . | . . . . . . Stealth | -11 -10 -10 -9 -9 -9 --------- Run | Yrd Mat Min Mat Sto Gar Distress Signals 4 | . . . . 3 1 Communications Jammed . | . . . . . . Distress Signals . | . . . . . . Times Spotted 93 | . 12 2 24 22 33 Peak Tracking Total 7 | . 3 2 7 4 5 Tactical Retreats 9 | . 1 . 3 2 3 Traps | -11 -10 -10 -9 -9 -9 ------- Run | Yrd Mat Min Mat Sto Gar Traps Triggered 8 | . 2 . . . 6 Indirectly . | . . . . . . Trap Hack Attempts . | . . . . . . Triggered . | . . . . . . Disarmed . | . . . . . . Reprogrammed . | . . . . . . Reused . | . . . . . . Traps Extracted . | . . . . . . Installed . | . . . . . . Triggered . | . . . . . . Machines | -11 -10 -10 -9 -9 -9 ---------- Run | Yrd Mat Min Mat Sto Gar Machines Disabled 5 | . . . . 1 4 Max in Single Turn 1 | . . . . 1 1 Garrison Relay 4 | . . . . . 4 Machines Repaired . | . . . . . . Machines Dismantled . | . . . . . . Machines Sabotaged . | . . . . . . Overloaded Fab Kills . | . . . . . . Hacking | -11 -10 -10 -9 -9 -9 --------- Run | Yrd Mat Min Mat Sto Gar Machines Accessed 11 | . . . 4 5 2 Terminals 10 | . . . 4 4 2 Fabricators . | . . . . . . Repair Stations . | . . . . . . Recycling Units . | . . . . . . Scanalyzers . | . . . . . . Garrison Access 1 | . . . . 1 . Total Hacks 23 | . . . 8 12 3 Successful 11 | . . . 2 8 1 Failed 12 | . . . 6 4 2 Catastrophic 3 | . . . 2 1 . Database Lockouts . | . . . . . . Manual 9 | . . . 4 5 . Terminals 21 | . . . 8 10 3 Fabricators . | . . . . . . Repair Stations . | . . . . . . Recycling Units . | . . . . . . Scanalyzers . | . . . . . . Garrison Access 2 | . . . . 2 . Terminal Hacks 8 | . . . 1 6 1 Prototype ID Bank 2 | . . . . 2 . Open Door 2 | . . . . 2 . Branch Access Points 1 | . . . 1 . . Emergency Access Points 1 | . . . . . 1 Recall Reinforcements 1 | . . . . 1 . Zone Layout 1 | . . . . 1 . Fabricator Hacks . | . . . . . . Repair Station Hacks . | . . . . . . Recycling Unit Hacks . | . . . . . . Scanalyzer . | . . . . . . Garrison Access Hacks 1 | . . . . 1 . Unlock Access 1 | . . . . 1 . Unauthorized Hacks 2 | . . . 1 1 . Terminals 2 | . . . 1 1 . Botnet 2 | . . . 1 1 . Fabricators . | . . . . . . Repair Stations . | . . . . . . Recycling Units . | . . . . . . Scanalyzers . | . . . . . . Garrison Access . | . . . . . . Data Cores Recovered . | . . . . . . Used . | . . . . . . Hacking Detections 8 | . . . 3 3 2 Full Trace Events 2 | . . . 1 . 1 Feedback Events 1 | . . . 1 . . Corruption 1 | . . . 1 . . Feedback Blocked . | . . . . . . Robot Schematics Acquired . | . . . . . . Robots Built . | . . . . . . Authchips . | . . . . . . Time . | . . . . . . Total Robot Build Rating . | . . . . . . Part Schematics Acquired . | . . . . . . Parts Built . | . . . . . . Authchips . | . . . . . . Time . | . . . . . . Total Part Build Rating . | . . . . . . Parts Repaired . | . . . . . . Time . | . . . . . . Parts Recycled . | . . . . . . Recycled Matter . | . . . . . . Retrieved Matter . | . . . . . . Retrieved Components . | . . . . . . Parts Scanalyzed . | . . . . . . Part Schematics Acquired . | . . . . . . Parts Damaged . | . . . . . . Bothacking | -11 -10 -10 -9 -9 -9 ------------ Run | Yrd Mat Min Mat Sto Gar Used RIF Installer 1 | . . . . . 1 Robots Hacked . | . . . . . . Non-combat . | . . . . . . Combat . | . . . . . . Robot Hacks Applied . | . . . . . . Relay Couplers Released 17 | . . . . . 17 Machine Destruction 17 | . . . . . 17 Fabnet Peak Effective % . | . . . . . . Robots Rewired 3 | . . . . . 3 Allies Hacked . | . . . . . . Hacks Repelled . | . . . . . . Allies | -11 -10 -10 -9 -9 -9 -------- Run | Yrd Mat Min Mat Sto Gar Total Allies 3 | . . . . . 3 Largest Group 3 | . . . . . 3 Highest-Rated Group 24 | . . . . . 24 Highest-Rated Ally 8 | . . . . . 8 Total Orders . | . . . . . . Ally Attacks 16 | . . . . . 16 Total Damage 140 | . . . . . 140 Kills 3 | . . . . . 3 Allies Corrupted . | . . . . . . Allies Melted . | . . . . . . Intel | -11 -10 -10 -9 -9 -9 ------- Run | Yrd Mat Min Mat Sto Gar Robot Analysis Total . | . . . . . . Derelict Logs Recovered . | . . . . . . Drone Launches . | . . . . . . Drone Recoveries . | . . . . . . Exploration | -11 -10 -10 -9 -9 -9 ------------- Run | Yrd Mat Min Mat Sto Gar Turns Passed 4272 | 82 420 61 790 951 1968 Spaces Moved 1561 | 43 200 21 307 335 655 Core 2 | 2 . . . . . Treads 376 | 41 189 . . 1 145 Legs . | . . . . . . Wheels 1183 | . 11 21 307 334 510 Hover . | . . . . . . Flight . | . . . . . . Fastest Speed 50 | 50 160 200 200 200 200 Average Speed 219 | 156 162 200 205 215 250 Slowest Speed 480 | 160 200 200 215 480 480 Overloaded Moves . | . . . . . . Propulsion Burnouts . | . . . . . . Robots Hopped . | . . . . . . Cave-ins Triggered . | . . . . . . Exploration Rate (%) 31 | 4 32 7 33 49 62 Regions Visited 5 Branch Regions 2 Pre-discovered Areas . | . . . . . . Known Exits Taken 2 | . . . 1 1 . Unknown Exits Taken 3 | 1 1 1 . . . Scrap Searched . | . . . . . . Spaces Dug . | . . . . . . Terrain Destroyed . | . . . . . . Melee . | . . . . . . Projectile . | . . . . . . AOE . | . . . . . . Terrain Rammed . | . . . . . . Walls Destroyed . | . . . . . . Machines Disabled . | . . . . . . Actions | -11 -10 -10 -9 -9 -9 --------- Run | Yrd Mat Min Mat Sto Gar Total 2046 | 56 247 30 386 471 856 Wait 94 | 1 9 4 9 24 47 Move 1556 | 42 199 20 306 334 655 Hop . | . . . . . . Pick Up 56 | 7 4 . 18 18 9 Fast Attach 17 | 5 1 . 1 7 3 Attach 14 | 1 . . 5 3 5 Detach 1 | . . . 1 . . Swap 14 | . 2 . 3 7 2 Drop 39 | . 3 . . 24 12 Fire 201 | . 29 6 43 54 69 Melee . | . . . . . . Ram . | . . . . . . Kick . | . . . . . . Crush . | . . . . . . Escape Stasis 30 | . . . . . 30 Rewire 24 | . . . . . 24 Trap . | . . . . . . Miscellaneous . | . . . . . . Route ------- -11/Scrapyard -10/Materials -10/Mines -9/Materials (discovered 3 exits: Min x2 / *Sto) -9/Storage (discovered 2 exits: [*Mat] / Gar) -9/Garrison (discovered 2 exits: [*Mat x2]) History --------- Turn | Location | Event 42 | -11/Scrapyard | Discovered new exit (range 15) 83 | -11/Scrapyard | Entered Materials 312 | -10/Materials | Build established: Mutant 463 | -10/Materials | Discovered new exit (range 7) 503 | -10/Materials | Entered Mines 506 | -10/Mines | Discovered new exit (range 12) 564 | -10/Mines | Entered Materials 564 | -9/Materials | Evolved 2 slots: Utility x2 1077 | -9/Materials | Lost 3 parts (2n1u) 1158 | -9/Materials | Identified exit to Mines 1158 | -9/Materials | Identified exit to Storage 1354 | -9/Materials | Entered Storage 2039 | -9/Storage | Core integrity fell below 50% 2063 | -9/Storage | Build established: Scavenger-Mutant 2266 | -9/Storage | Discovered new exit (range 16) 2302 | -9/Storage | Identified exit to Garrison 2305 | -9/Storage | Entered Garrison 2379 | -9/Garrison | Triggered checkpoint 2400 | -9/Garrison | Garrison Relay disabled 2433 | -9/Garrison | Triggered checkpoint 2617 | -9/Garrison | Triggered checkpoint 2751 | -9/Garrison | Triggered checkpoint 2949 | -9/Garrison | Triggered checkpoint 3027 | -9/Garrison | Garrison Relay disabled 3043 | -9/Garrison | Triggered checkpoint 3191 | -9/Garrison | Core integrity fell below 20% 3225 | -9/Garrison | Triggered checkpoint 3272 | -9/Garrison | Installed Relay Interface Framework 3347 | -9/Garrison | Triggered checkpoint 3378 | -9/Garrison | Garrison Relay disabled 3460 | -9/Garrison | Discovered new exit (range 9) 3615 | -9/Garrison | Triggered checkpoint 3733 | -9/Garrison | Triggered checkpoint 3769 | -9/Garrison | Garrison Relay disabled 3945 | -9/Garrison | Discovered new exit (range 15) 4273 | -9/Garrison | Destroyed by P-60 Hacker with Shock Rifle Last Messages --------------- 03870_ Acquired Lgt. Treads. 03874_ Dropped Lgt. Armor Plating. 03874_ Acquired Lgt. Armor Plating. 03945_ EXIT=FOUND 04105_ ALERT: Garrison interior compromised. 04108_ Triggered Stasis Trap. 04108_ A bubble of rippling energy engulfs the area. 04108_ Field strength at 70. 04112_ Field strength at 40. 04113_ Field strength at 10. 04114_ Stasis field depleted. 04233_ W-16 Scout springs to life. 04233_ W-16 Scout sends out distress signal. 04242_ Y-45 Defender destroyed. 04258_ Hvy. Assault Rifle destroyed. 04258_ Hvy. Armor Plating destroyed. 04264_ Imp. Medium Laser destroyed. 04271_ System corrupted: Substantial component data lost. Map ----- +----------------------------------------------------+ | ?????????????????????????????????????????????????? | | ?????????????????????????????????????????????????? | | ?????????????????????????????????????????????????? | | ?????????????????????????????????????????????????? | | ?????????????????????????????????????????????????? | | ?????????????????????????????????????????????????? | | ?????????????????????????????????????????????????? | | ?????????????????????????????????????????????????? | | ?????????????????????????+?+?????????????????????? | | ?????????????????????????????????????????????????? | | ???????????????????????+?? ??+???????????????????? | | ?????????????????????????? ??????????????????????? | | ?????????????????????????+ +?????????#######?????? | | ????+????????????????????? ??????????#!!!!!######? | | ?????????????????????????#+#?????????#! #? | | ???????????????#+##??????] ]?????????#! [[ #? | | ??????????????? #?????? ?????????#!! !!### ## | | ??????????????? +????+? ?????????###+###?# % | | ???????????????# #?????? ?????????????????+ =*% | | ???????????????# #??????# #?????????????????# =% | | ####???????????# #??????# #?????????????????# [## | | !!!###?????????# #??????+ #?????????????????# #? | | ! #?????????# #??????# #?????????????????# #? | | !!!# #?????????# #??????#%#???????#####+##### ## | | #### ###########[=########p##??????# | | % /! !%%p % @[!#??????# | | ### =%##########%=%p #??????# | | #?# *#????????#=[######## #??????# #+######### | | #?##+##????????#==#??????# #??????# ^ #?????????? | | #??????????????# #??????+ #??????#^ #?????????? | | #??????????????# #??????# #??????# +?????????? | | #??????????????+ +??????# #??????# #?????????? | | #??????????????# #??????# ######## #?????????? | | #??????????????# #??????# ## *=!## +?????????? | | #?##+##????????# #?????## ## !%*## #?????????? | | #?# #????????# ##+#### [[=!%= #?????????? | | ### [########## *% +?????????? | | =!%*%! = #?????????? | | #### ###############+#### ## ## #?????????? | | !!!# #????????????????### ## ## #+????????? | | ! #????????????????+ "?????????? | | !!!###????????????????# "?????????? | | ###???????????????????# "?????????? | | ??????????????????????# "?+???????? | | ????????#######???????### ## ## #?????????? | | ????????#"""" ########### ## ## #?????????? | | ????????#" #?????????? | | ????????#""""^# !* +?????????? | | ????????####### #####+## =%! #?????????? | | ??????????????# #??????## ##%%! ## #?????????? | +----------------------------------------------------+ Best States ------------- Heat Dissipation 48 Energy Generation 12 Energy Capacity 265 Matter Stores 300 Matter Capacity 300 Sight Range 16 Terrain Scan Range 14 Terrain Scan Density 85 Armor Coverage 600 Power Shielding 33 Evasion (%) 40 Recoil Reduction 2 Item Schematics ----------------- None Robot Schematics ------------------ None Fabricated ------------ Nothing Alien Tech Used ----------------- None Achievements -------------- None Challenges ------------ None Game ------ Seed IonControlFlightbrick Manual? 0 Play Time 00:19:47 Cumulative 90.7 hours Start 2024.10.27 @ 12:05:29 End 2024.10.27 @ 12:23:20 Sessions 1 Manual Loads 0 Difficulty Rogue Special Mode None Game No. 113 Rogue 113 Adventurer 0 Explorer 0 Win Type - Total 1 Types 1/0/0/0/0/0/0/0/0 Lore% 59 Gallery% 48 Achievement% 39 Wizard Run 0 Options --------- Layout 1 ASCII 0 Keyboard 1 Movement Numpad Keybinds 0 Fullscreen 1 Font 24/Smallcaps Map View 50x35 Zoom Use 0% Tactical HUD 1 Map Filters NONE Filters NONE Steam 1 RUN: f840ca92-0e17-420a-8a70-9acdbab415f3